Cogmind - Beta 10 @@@ ROGUE MODE // 2020.09.20 @ 01:09:16 Player: Tmvn Result: Destroyed by Y-45 Defender with Beam Rifle Performance ------------- Evolutions (1) 500 Regions Visited (3) 600 Robots Destroyed (22) 110 Value Destroyed (498) 498 Prototype IDs (1) 20 Alien Tech Used (0) 0 Bonus (0) 0 TOTAL SCORE: 1728 Bonus ------- None Cogmind --------- Core Integrity 0/400 Matter 169/300 Energy 100/100 System Corruption 0% Temperature Cool (45) Movement Hovering (120) Ox1 Location -9/Materials Parts ------- > --- POWER (1) -------- (None) > --- PROPULSION (2) --- Airjet > --- UTILITY (3) ------ Small Storage Unit Improved Terrain Scanner > --- WEAPON (3) ------- EM Shotgun Assault Rifle > --- INVENTORY (6) ---- Deuterium Engine Mini Grenade Launcher Peak State ------------ > --- POWER ------------ Deuterium Engine > --- PROPULSION ------- Airjet Airjet > --- UTILITY ---------- Small Storage Unit Terrain Scanner Improved Terrain Scanner > --- WEAPON ----------- Particle Gun Particle Cannon Heavy Assault Rifle > --- INVENTORY -------- Ion Engine Deuterium Engine Airjet Airjet EM Pulse Gun Medium Laser [Rating: 20] Favorites ----------- Power Ion Engine Engine Ion Engine Propulsion Wheel Leg Aluminum Leg Wheel Wheel Hover Unit Airjet Utility Small Storage Unit Device Improved Terrain Scanner Storage Small Storage Unit Weapon Light Assault Rifle Energy Gun Particle Gun Energy Cannon Particle Cannon Ballistic Gun Light Assault Rifle Ballistic Cannon Light Cannon Launcher Mini Grenade Launcher Build | -11 -10 -10 -9 ------- Run | Scr Mat Min Mat Slots Evolved 2 | . . . 2 Power . | . . . . Propulsion . | . . . . Utility 1 | . . . 1 Weapon 1 | . . . 1 Parts Attached 34 | 8 5 . 21 Power 5 | 1 1 . 3 Engine 5 | 1 1 . 3 Core . | . . . . Reactor . | . . . . Propulsion 13 | 3 3 . 7 Treads . | . . . . Leg 1 | . . . 1 Wheel 8 | 3 3 . 2 Hover 4 | . . . 4 Flight . | . . . . Utility 3 | 2 . . 1 Device 2 | 1 . . 1 Storage 1 | 1 . . . Processor . | . . . . Hackware . | . . . . Protection . | . . . . Artifact . | . . . . Weapon 13 | 2 1 . 10 Energy Gun 7 | 1 . . 6 Energy Cannon 1 | . . . 1 Ballistic Gun 3 | 1 . . 2 Ballistic Cannon 1 | . 1 . . Launcher 1 | . . . 1 Special Weapon . | . . . . Impact Weapon . | . . . . Slashing Weapon . | . . . . Piercing Weapon . | . . . . Special Melee Weapon . | . . . . Unidentified Prototypes 1 | . . . 1 Parts Lost 14 | . . . 14 Power 3 | . . . 3 Propulsion 4 | . . . 4 Utility 1 | . . . 1 Weapon 6 | . . . 6 Highest Loss Streak 7 | . . . 7 Average Slot Usage (%) 86 | . 99 100 81 Engine 11 | . 14 14 10 Wheel 15 | . 28 28 9 Hover 4 | . . . 7 Device 16 | . 14 14 18 Storage 11 | . 14 14 11 Energy Gun 6 | . . . 9 Energy Cannon 1 | . . . 2 Ballistic Gun 9 | . 14 14 7 Ballistic Cannon 6 | . 13 14 2 Naked Turns . | . . . . Heaviest Build 25 | 10 14 14 25 Greatest Support 32 | 32 26 20 22 Greatest Overweight (x) 8 | . . . 8 Average Overweight (x) . | . . . . Largest Inventory Capacity 6 | 6 6 6 6 Average Capacity 5 | 5 6 6 6 Most Carried 6 | 6 6 6 6 Average Carried 4 | 2 6 6 4 Final Capacity 6 | 6 6 6 6 Final Carried 6 | 6 6 6 2 Class Distribution -------------------- 68% | Mutant 26% | Skirmisher 4% | Scavenger-Skirmisher Dominant Class ---------------- Mutant | -10/Materials Mutant | -10/Mines Mutant | -9/Materials Resources | -11 -10 -10 -9 ----------- Run | Scr Mat Min Mat Matter Collected 601 | 281 87 21 212 Remotely . | . . . . Salvage Created 757 | 133 137 . 487 Parts 51 | 8 9 . 34 Haulers Intercepted 2 | . 1 . 1 Recyclers Shooed 1 | . 1 . . Parts Field Recycled . | . . . . Retrieved Matter . | . . . . Parts Self-Destructed . | . . . . Prevented . | . . . . Kills | -11 -10 -10 -9 ------- Run | Scr Mat Min Mat Combat Hostiles Destroyed 12 | . 2 . 10 Guns 6 | . 1 . 5 Cannons 2 | . 1 . 1 AOE 4 | . . . 4 Classes Destroyed 9 | 2 3 . 4 Worker 1 | . 1 . . Builder 2 | . . . 2 Tunneler 2 | 2 . . . Hauler 2 | . 1 . 1 Recycler 2 | 1 . . 1 Watcher 1 | . . . 1 Grunt 10 | . 2 . 8 Brawler 1 | . . . 1 Sentry 1 | . . . 1 Best Kill Streak 6 | 3 2 . 6 Combat Bots Only 3 | . 2 . 3 Max Kills in Single Turn 2 | 1 1 . 2 Gunslinging . | . . . . Exploded 2 | . . . 2 Melee . | . . . . Uniques/NPCs Destroyed . | . . . . Combat | -11 -10 -10 -9 -------- Run | Scr Mat Min Mat Damage Taken 1355 | . 61 15 1279 Core 433 | . 22 10 401 Absorbed by Shields . | . . . . Core Remaining (%) 93 | 100 . 87 . Volleys Fired 67 | 11 11 1 44 Largest 3 | 1 2 2 3 Hottest 156 | 20 55 55 156 Shots Fired 127 | 11 22 2 92 Gun 87 | 11 11 1 64 Cannon 30 | . 11 1 18 Launcher 10 | . . . 10 Special . | . . . . Kinetic 70 | 11 22 2 35 Thermal 40 | . . . 40 Explosive 10 | . . . 10 Electromagnetic 7 | . . . 7 Robot Hit Streak 13 | 9 5 1 13 Robot Miss Streak 7 | 1 7 1 3 Penetration Max . | . . . . Secondary Targets 1 | . . . 1 Max Gunslinging Chain 1 | . . . 1 Shots Hit Robots 81 | 10 9 1 61 Core Hits 35 | 6 6 . 23 Critical Hits . | . . . . Critical Kills . | . . . . Critical Parts Destroyed . | . . . . Melee Attacks . | . . . . Impact . | . . . . Slashing . | . . . . Piercing . | . . . . Sneak Attacks . | . . . . Combat Hostiles . | . . . . Follow-up Attacks . | . . . . Damage Inflicted 1410 | 79 171 29 1131 Guns 720 | 79 60 . 581 Cannons 241 | . 102 19 120 Explosions 430 | . . . 430 Melee . | . . . . Ramming 19 | . 9 10 . Kinetic 498 | 79 162 19 238 Thermal 388 | . . . 388 Explosive 430 | . . . 430 Electromagnetic 75 | . . . 75 Impact . | . . . . Slashing . | . . . . Piercing . | . . . . Highest Corruption . | . . . . Average Corruption . | . . . . Corruption Purged . | . . . . Overload Shots . | . . . . Overflow Damage 62 | . . . 62 Projectiles . | . . . . Explosions 62 | . . . 62 Melee . | . . . . Knockbacks 2 | . 2 . . Impact . | . . . . Kinetic 2 | . 2 . . Secondary . | . . . . Self-Inflicted Damage 155 | . 4 5 146 Shots 8 | . . . 8 Rammed 2 | . 1 1 . Targets Rammed 2 | . 1 1 . Kicked . | . . . . Crushed . | . . . . Highest Temperature 483 | . 34 14 483 Average Temperature 143 | . 15 10 161 Received Heat Transfer 642 | . 30 . 612 Effects 6 | . . . 6 Shutdowns 1 | . . . 1 Energy Bleed 3 | . . . 3 Interference 1 | . . . 1 Damage (minor) 1 | . . . 1 Siege Activations . | . . . . Robots Corrupted . | . . . . Combat Hostiles . | . . . . Parts Fried . | . . . . Impact Corruptions . | . . . . Robots Melted . | . . . . Combat Hostiles . | . . . . Parts Melted 2 | . . . 2 Heat Transferred 888 | . . . 888 Parts Sabotaged . | . . . . Parts Stolen . | . . . . Parts Stripped . | . . . . Power Chain Reactions . | . . . . Missiles Intercepted . | . . . . Alert | -11 -10 -10 -9 ------- Run | Scr Mat Min Mat Peak Influence 223 | 15 76 29 223 Initial 29 | . 9 29 11 Average 76 | 5 49 29 109 Maximum Alert Level 1 | . . . 1 Low Security (%) 83 | 100 100 100 72 Level 1 16 | . . . 27 Level 2 . | . . . . Level 3 . | . . . . Level 4 . | . . . . Level 5 . | . . . . High Security . | . . . . Max Security . | . . . . Squads Dispatched 2 | . 1 . 1 Investigation 1 | . . . 1 Extermination . | . . . . Reinforcement 1 | . 1 . . Assault . | . . . . Garrison . | . . . . Intercept . | . . . . Construction Impeded . | . . . . Haulers Reinforced . | . . . . Stealth | -11 -10 -10 -9 --------- Run | Scr Mat Min Mat Distress Signals 1 | . . . 1 Communications Jammed . | . . . . Distress Signals . | . . . . Times Spotted 25 | . 6 . 19 Peak Tracking Total 6 | . 3 . 6 Tactical Retreats 4 | . . . 4 Traps | -11 -10 -10 -9 ------- Run | Scr Mat Min Mat Traps Triggered 1 | . . . 1 Indirectly . | . . . . Trap Hack Attempts . | . . . . Triggered . | . . . . Disarmed . | . . . . Reprogrammed . | . . . . Reused . | . . . . Traps Extracted . | . . . . Installed . | . . . . Triggered . | . . . . Machines | -11 -10 -10 -9 ---------- Run | Scr Mat Min Mat Machines Disabled 2 | . . . 2 Max in Single Turn 2 | . . . 2 Machines Sabotaged . | . . . . Garrisons Compromised . | . . . . Overloaded Fab Kills . | . . . . Fab Network Shutdowns . | . . . . Hacking | -11 -10 -10 -9 --------- Run | Scr Mat Min Mat Machines Accessed 3 | . . . 3 Terminals 3 | . . . 3 Fabricators . | . . . . Repair Stations . | . . . . Recycling Units . | . . . . Scanalyzers . | . . . . Garrison Access . | . . . . Total Hacks 3 | . . . 3 Successful 3 | . . . 3 Failed . | . . . . Catastrophic . | . . . . Database Lockouts . | . . . . Manual . | . . . . Terminals 3 | . . . 3 Fabricators . | . . . . Repair Stations . | . . . . Recycling Units . | . . . . Scanalyzers . | . . . . Garrison Access . | . . . . Terminal Hacks 3 | . . . 3 Alert Level 1 | . . . 1 Dispatch Records 2 | . . . 2 Fabricator Hacks . | . . . . Repair Station Hacks . | . . . . Recycling Unit Hacks . | . . . . Scanalyzer . | . . . . Garrison Access Hacks . | . . . . Unauthorized Hacks . | . . . . Terminals . | . . . . Fabricators . | . . . . Repair Stations . | . . . . Recycling Units . | . . . . Scanalyzers . | . . . . Garrison Access . | . . . . Data Cores Recovered . | . . . . Used . | . . . . Hacking Detections 1 | . . . 1 Full Trace Events . | . . . . Feedback Events . | . . . . Feedback Blocked . | . . . . Robot Schematics Acquired . | . . . . Robots Built . | . . . . Matter . | . . . . Time . | . . . . Total Robot Build Rating . | . . . . Part Schematics Acquired . | . . . . Parts Built . | . . . . Matter . | . . . . Time . | . . . . Total Part Build Rating . | . . . . Parts Repaired . | . . . . Time . | . . . . Parts Recycled . | . . . . Recycled Matter . | . . . . Retrieved Matter . | . . . . Retrieved Components . | . . . . Parts Scanalyzed . | . . . . Part Schematics Acquired . | . . . . Parts Damaged . | . . . . Bothacking | -11 -10 -10 -9 ------------ Run | Scr Mat Min Mat Used RIF Installer . | . . . . Robots Hacked . | . . . . Non-combat . | . . . . Combat . | . . . . Robot Hacks Applied . | . . . . Relay Couplers Released . | . . . . Robots Rewired . | . . . . Allies Hacked . | . . . . Hacks Repelled . | . . . . Allies | -11 -10 -10 -9 -------- Run | Scr Mat Min Mat Total Allies . | . . . . Largest Group . | . . . . Highest-Rated Group . | . . . . Highest-Rated Ally . | . . . . Total Orders . | . . . . Ally Attacks . | . . . . Total Damage . | . . . . Kills . | . . . . Allies Corrupted . | . . . . Allies Melted . | . . . . Intel | -11 -10 -10 -9 ------- Run | Scr Mat Min Mat Robot Analysis Total . | . . . . Derelict Logs Recovered 1 | . . 1 . Drone Launches . | . . . . Drone Recoveries . | . . . . Exploration | -11 -10 -10 -9 ------------- Run | Scr Mat Min Mat Turns Passed 918 | 120 160 98 540 Spaces Moved 700 | 89 138 118 355 Core 13 | 3 . . 10 Treads . | . . . . Legs 3 | . . . 3 Wheels 525 | 86 138 118 183 Hover 159 | . . . 159 Flight . | . . . . Fastest Speed 50 | 50 80 80 80 Average Speed 95 | 93 87 80 105 Slowest Speed 450 | 100 90 80 450 Overloaded Moves . | . . . . Propulsion Burnouts . | . . . . Robots Hopped . | . . . . Cave-ins Triggered . | . . . . Exploration Rate (%) 28 | 5 36 29 43 Regions Visited 3 Branch Regions 1 Pre-discovered Areas . | . . . . Known Exits Taken 1 | . . 1 . Unknown Exits Taken 2 | 1 1 . . Scrap Searched 1 | . . 1 . Spaces Dug . | . . . . Terrain Destroyed 31 | . . . 31 Melee . | . . . . Projectile . | . . . . AOE 31 | . . . 31 Terrain Rammed . | . . . . Walls Destroyed . | . . . . Machines Disabled . | . . . . Actions | -11 -10 -10 -9 --------- Run | Scr Mat Min Mat Total 842 | 113 160 119 450 Wait 13 | . . . 13 Move 697 | 88 137 117 355 Hop . | . . . . Pick Up 10 | 5 1 . 4 Fast Attach 18 | 6 1 . 11 Attach 7 | 1 . . 6 Detach 3 | 1 . . 2 Swap 9 | 1 4 . 4 Drop 16 | . 5 . 11 Fire 67 | 11 11 1 44 Melee . | . . . . Ram 2 | . 1 1 . Kick . | . . . . Crush . | . . . . Escape Stasis . | . . . . Rewire . | . . . . Trap . | . . . . Miscellaneous . | . . . . Route ------- -11/Scrapyard -10/Materials -10/Mines -9/Materials History --------- Turn | Location | Event 17 | -11/Scrapyard | Discovered new exit (range 16) 121 | -11/Scrapyard | Entered Materials 257 | -10/Materials | Discovered new exit (range 10) 281 | -10/Materials | Entered Mines 308 | -10/Mines | Build established: Mutant 324 | -10/Mines | Identified exit to Materials 379 | -10/Mines | Entered Materials 379 | -9/Materials | Evolved 2 slots: Utility x1, Weapon x1 727 | -9/Materials | Lost 6 parts (2n4w) 744 | -9/Materials | Core integrity fell below 50% 787 | -9/Materials | Lost 7 parts (2p2n1u2w) 911 | -9/Materials | Core integrity fell below 20% 919 | -9/Materials | Destroyed by Y-45 Defender with Beam Rifle Last Messages --------------- The unstable cave ceiling collapses. K-01 Serf collects debris. U-05 Engineer builds a Door. The unstable cave ceiling collapses. U-05 Engineer lays Concrete. K-01 Serf collects debris. U-05 Engineer lays Concrete. U-05 Engineer builds a Wall. K-01 Serf collects debris. U-05 Engineer lays Concrete. Connecting with Repair Station... Acquired EM Shotgun. Acquired Assault Rifle. Connecting with Terminal... >>Alert(Check) Current Alert Level: Low Security Triggered Alarm Trap. An alarm sounds. ALERT: Alarm triggered, dispatching investigation squad. Ion Engine destroyed. Map ----- +----------------------------------------------------+ | ????????????# """# # """ # | | ????????????# # # # | | ????????????######## # # | | ??????????????????## # # | | ????#??????????????# + # | | ???????????????#???# ########### | | ???????#????????#??# #? | | ???????????????????# #? | | ???????????????????# """"" #? | | ???????????????????# """"" #? | | ???????????????????# """"" #? | | ???????????######### """"" #? | | ???????????# # """"" #? | | ???????????# # """"" #? | | ???????????# "" + """"" #? | | ???????????# S"" # #? | | ???????????# "" # #? | | ???????????# ?### ###########? | | ???????????######???# #????#?????? | | ????????????????????# ############ | | ????????#???????????# + # | | ?????????????###?#?## #Y """# | | ?????????????# ## # """# | | ????????????## # """# | | ?????????????# ] [ g # | | ??????????#??# #@ """# | | ?????????????# #### # """# | | ?????????????## #???# # """# | | ??????????????# ????# # # | | ??????????????# ??????+########## | | ??????????????# ???????? ???????? | | ??????????????# ???? ????????????? | | ??????????????#??????????????????? | | ?????????????????????????????????? | | ?????????????????????????????????? | | ?????????????????????????????????? | | ?????????????????????????????????? | | ?????????????????????????????????? | | ???????????????????????????#?????? | | ?????????????????????????????????? | | ?????????????????????????????????? | | ?????????????????????????????????? | | ?????????????????????????????????? | | ?????????????????????????????????? | | ?????????????????????????????????? | | ?????????????????????????????????? | | ?????????????????????????????????? | | | | | | | +----------------------------------------------------+ Best States ------------- Heat Dissipation 28 Energy Generation 14 Energy Capacity 275 Matter Stores 300 Matter Capacity 300 Sight Range 16 Terrain Scan Range 16 Terrain Scan Density 10 Evasion (%) 44 Item Schematics ----------------- None Robot Schematics ------------------ None Fabricated ------------ Nothing Alien Tech Used ----------------- None Achievements -------------- None Challenges ------------ None Game ------ Seed GravmagLinearTerminator Manual? 0 Play Time 00:10:52 Cumulative 6.0 hours Start 2020.09.20 @ 01:00:01 End 2020.09.20 @ 01:09:16 Sessions 1 Manual Loads 0 Difficulty Rogue Special Mode None Game No. 16 Rogue 16 Adventurer 0 Explorer 0 Win Type - Total 0 Types 0/0/0/0/0/0/0/0/0 Lore% 7 Gallery% 16 Achievement% 20 Wizard Run 0 Options --------- ASCII 1 Keyboard 1 Movement Vi Keybinds 0 Fullscreen 2 Font 24/Proggy Map View 76x50 Tactical HUD 0 Map Filters SATURATION(56) Filters SATURATION(66) Steam 1 RUN: 2533619c-ace1-479b-99dc-ae454a7e652b